[Event "*** MasterClass Titled Tuesday Blitz"]
[Site "Chess.com"]
[Date "2017.07.04"]
[Round "3"]
[White "Schemato"]
[Black "IamSchrodingersCat"]
[Result "1-0"]
[WhiteElo "2319"]
[BlackElo "2426"]
[TimeControl "180+2"]
[EndTime "13:40:16 PDT"]
[Termination "Schemato won by checkmate"]

1. c4 {[%clk 0:03:01.9]} 1... Nf6 {[%clk 0:02:59.7]} 2. Nc3 {[%clk 0:03:01.9]}
2... g6 {[%clk 0:02:56.2]} 3. g3 {[%clk 0:03:02.3]} 3... Bg7 {[%clk 0:02:57.3]}
4. Bg2 {[%clk 0:03:03.3]} 4... O-O {[%clk 0:02:58.9]} 5. e4 {[%clk 0:03:03.8]}
5... d6 {[%clk 0:02:59.9]} 6. Nge2 {[%clk 0:03:04.9]} 6... e5 {[%clk 0:03:00.7]}
7. O-O {[%clk 0:03:05.8]} 7... Re8 {[%clk 0:02:58.4]} 8. d3 {[%clk 0:03:06.1]}
8... Nc6 {[%clk 0:02:56.5]} 9. h3 {[%clk 0:03:04.6]} 9... Nd4 {[%clk 0:02:52.3]}
10. Nxd4 {[%clk 0:03:04.9]} 10... exd4 {[%clk 0:02:54.2]} 11. Ne2 {[%clk
0:03:06.4]} 11... c5 {[%clk 0:02:54.3]} 12. b4 {[%clk 0:03:06.5]} 12... Nd7
{[%clk 0:02:47.9]} 13. Bf4 {[%clk 0:02:44.7]} 13... Ne5 {[%clk 0:02:19]} 14.
bxc5 {[%clk 0:02:33.6]} 14... dxc5 {[%clk 0:02:20.9]} 15. a4 {[%clk 0:02:24.2]}
15... Bd7 {[%clk 0:02:05.4]} 16. a5 {[%clk 0:02:14.7]} 16... Nc6 {[%clk
0:01:54.7]} 17. Bd2 {[%clk 0:02:05.8]} 17... Qc7 {[%clk 0:01:39.4]} 18. Nf4
{[%clk 0:01:58]} 18... Rad8 {[%clk 0:01:35.1]} 19. Nd5 {[%clk 0:01:57.8]} 19...
Qd6 {[%clk 0:01:34.7]} 20. Qb3 {[%clk 0:01:54.4]} 20... Bc8 {[%clk 0:01:35]} 21.
Bg5 {[%clk 0:01:45.2]} 21... f6 {[%clk 0:01:33.9]} 22. Bf4 {[%clk 0:01:44.8]}
22... Ne5 {[%clk 0:01:33.8]} 23. Bd2 {[%clk 0:01:35.4]} 23... h5 {[%clk
0:01:27.9]} 24. f4 {[%clk 0:01:35.2]} 24... Nc6 {[%clk 0:01:28]} 25. h4 {[%clk
0:01:33.4]} 25... Rf8 {[%clk 0:01:12.3]} 26. Rab1 {[%clk 0:01:27]} 26... Rde8
{[%clk 0:01:09.6]} 27. Kh2 {[%clk 0:01:23.7]} 27... Qd7 {[%clk 0:00:55.9]} 28.
Qb5 {[%clk 0:01:10.5]} 28... Qd6 {[%clk 0:00:53.4]} 29. Bh3 {[%clk 0:01:07.7]}
29... Bxh3 {[%clk 0:00:53.1]} 30. Kxh3 {[%clk 0:01:09.6]} 30... Rf7 {[%clk
0:00:54.5]} 31. Kg2 {[%clk 0:01:06.5]} 31... Bf8 {[%clk 0:00:47.6]} 32. Qa4
{[%clk 0:01:00.1]} 32... Qe6 {[%clk 0:00:36.9]} 33. Qd1 {[%clk 0:00:56.3]} 33...
Qd6 {[%clk 0:00:30.3]} 34. Qf3 {[%clk 0:00:52.8]} 34... f5 {[%clk 0:00:20.7]}
35. e5 {[%clk 0:00:52.8]} 35... Qe6 {[%clk 0:00:20.3]} 36. Rb5 {[%clk
0:00:44.5]} 36... Kh8 {[%clk 0:00:17.3]} 37. Kh3 {[%clk 0:00:43.7]} 37... Rb8
{[%clk 0:00:14.2]} 38. Rfb1 {[%clk 0:00:43.7]} 38... Rd7 {[%clk 0:00:12.3]} 39.
R1b2 {[%clk 0:00:39]} 39... Rf7 {[%clk 0:00:12.8]} 40. Qd1 {[%clk 0:00:33.6]}
40... Rd7 {[%clk 0:00:12]} 41. Qb1 {[%clk 0:00:33.3]} 41... Nd8 {[%clk 0:00:12]}
42. Nf6 {[%clk 0:00:30.4]} 42... Rf7 {[%clk 0:00:12]} 43. Nd5 {[%clk 0:00:29.5]}
43... Rd7 {[%clk 0:00:12.7]} 44. Qh1 {[%clk 0:00:30]} 44... Rf7 {[%clk
0:00:10.1]} 45. Rb1 {[%clk 0:00:30.9]} 45... Rd7 {[%clk 0:00:11]} 46. Bc1 {[%clk
0:00:31.9]} 46... Rc8 {[%clk 0:00:09.6]} 47. Ba3 {[%clk 0:00:32.5]} 47... Rf7
{[%clk 0:00:10.2]} 48. Qg2 {[%clk 0:00:31.6]} 48... Rd7 {[%clk 0:00:10.2]} 49.
Nf6 {[%clk 0:00:32.6]} 49... Rf7 {[%clk 0:00:11.2]} 50. R5b2 {[%clk 0:00:29.8]}
50... Re7 {[%clk 0:00:08.3]} 51. Nd5 {[%clk 0:00:27.2]} 51... Rd7 {[%clk
0:00:09]} 52. Qc2 {[%clk 0:00:26.1]} 52... Rf7 {[%clk 0:00:09.2]} 53. Qa4 {[%clk
0:00:26.2]} 53... Rd7 {[%clk 0:00:10.1]} 54. Qb5 {[%clk 0:00:26.1]} 54... Rf7
{[%clk 0:00:09.2]} 55. Nf6 {[%clk 0:00:23.1]} 55... Rg7 {[%clk 0:00:08.3]} 56.
Ne8 {[%clk 0:00:23.1]} 56... Rf7 {[%clk 0:00:07]} 57. Nf6 {[%clk 0:00:21.5]}
57... Rg7 {[%clk 0:00:07.8]} 58. Qe8 {[%clk 0:00:21.9]} 58... Qxe8 {[%clk
0:00:07.3]} 59. Nxe8 {[%clk 0:00:23.8]} 59... Re7 {[%clk 0:00:08.5]} 60. Nf6
{[%clk 0:00:24.6]} 60... Rf7 {[%clk 0:00:06.2]} 61. Nd5 {[%clk 0:00:25.6]} 61...
Rd7 {[%clk 0:00:07.1]} 62. Kg2 {[%clk 0:00:26.3]} 62... Re7 {[%clk 0:00:07.3]}
63. Kf3 {[%clk 0:00:27.6]} 63... Kg8 {[%clk 0:00:08]} 64. Ke2 {[%clk 0:00:28.8]}
64... Ne6 {[%clk 0:00:08.9]} 65. Kd2 {[%clk 0:00:29]} 65... Rf7 {[%clk
0:00:09.8]} 66. Rxb7 {[%clk 0:00:28.8]} 66... a6 {[%clk 0:00:05.6]} 67. Rxf7
{[%clk 0:00:27.1]} 67... Kxf7 {[%clk 0:00:07.5]} 68. Rb7+ {[%clk 0:00:28.2]}
68... Ke8 {[%clk 0:00:06.9]} 69. Nf6+ {[%clk 0:00:28.3]} 69... Kd8 {[%clk
0:00:07.5]} 70. Rd7# {[%clk 0:00:29]} 1-0

[Event "*** MasterClass Titled Tuesday Blitz"]
[Site "Chess.com"]
[Date "2017.07.04"]
[Round "3"]
[White "GianmarcoVaR"]
[Black "IMJonathanCarlstedt"]
[Result "0-1"]
[WhiteElo "2413"]
[BlackElo "2479"]
[TimeControl "180+2"]
[EndTime "13:41:13 PDT"]
[Termination "IMJonathanCarlstedt won by checkmate"]

1. d4 {[%clk 0:03:01.9]} 1... Nf6 {[%clk 0:02:44.4]} 2. c4 {[%clk 0:03:03]} 2...
e6 {[%clk 0:02:44.9]} 3. g3 {[%clk 0:03:04.4]} 3... c5 {[%clk 0:02:45.8]} 4. d5
{[%clk 0:03:04.7]} 4... exd5 {[%clk 0:02:47.4]} 5. cxd5 {[%clk 0:03:06.6]} 5...
d6 {[%clk 0:02:48.7]} 6. Nc3 {[%clk 0:03:08.2]} 6... g6 {[%clk 0:02:50.2]} 7.
Bg2 {[%clk 0:03:09.8]} 7... Bg7 {[%clk 0:02:51.4]} 8. Nf3 {[%clk 0:03:11.7]}
8... O-O {[%clk 0:02:52.2]} 9. O-O {[%clk 0:03:13.3]} 9... Re8 {[%clk
0:02:53.3]} 10. Bf4 {[%clk 0:03:13.5]} 10... a6 {[%clk 0:02:53.8]} 11. a4 {[%clk
0:03:13.8]} 11... Bf5 {[%clk 0:02:55]} 12. Nd2 {[%clk 0:02:57]} 12... Nh5 {[%clk
0:02:54.6]} 13. e4 {[%clk 0:02:51.4]} 13... Nxf4 {[%clk 0:02:53.8]} 14. gxf4
{[%clk 0:02:52.3]} 14... Bd7 {[%clk 0:02:53.1]} 15. Nc4 {[%clk 0:02:50.6]} 15...
Bc8 {[%clk 0:02:50.5]} 16. a5 {[%clk 0:02:42]} 16... Qe7 {[%clk 0:02:47.8]} 17.
Re1 {[%clk 0:02:37.9]} 17... Nd7 {[%clk 0:02:46.7]} 18. Qf3 {[%clk 0:02:35.2]}
18... Rb8 {[%clk 0:02:37.2]} 19. Qg3 {[%clk 0:02:32.4]} 19... b5 {[%clk
0:02:37.2]} 20. axb6 {[%clk 0:02:33.5]} 20... Nxb6 {[%clk 0:02:38.6]} 21. Na5
{[%clk 0:02:35]} 21... Bd7 {[%clk 0:02:37.8]} 22. Bh3 {[%clk 0:02:25.5]} 22...
Bxh3 {[%clk 0:02:25.3]} 23. Qxh3 {[%clk 0:02:26.6]} 23... Qf6 {[%clk 0:02:26.2]}
24. Qg3 {[%clk 0:02:23]} 24... Bh6 {[%clk 0:02:26.6]} 25. f5 {[%clk 0:02:22.9]}
25... Kh8 {[%clk 0:02:25]} 26. Nc6 {[%clk 0:02:03.2]} 26... Ra8 {[%clk
0:02:24.1]} 27. e5 {[%clk 0:02:02.6]} 27... dxe5 {[%clk 0:02:23.1]} 28. Ne4
{[%clk 0:02:03.4]} 28... Qg7 {[%clk 0:01:44.2]} 29. f6 {[%clk 0:02:02.2]} 29...
Qf8 {[%clk 0:01:45]} 30. d6 {[%clk 0:01:56.5]} 30... Bf4 {[%clk 0:01:42.2]} 31.
Qb3 {[%clk 0:01:51.9]} 31... Nd7 {[%clk 0:01:38.5]} 32. Qh3 {[%clk 0:01:49.5]}
32... Red8 {[%clk 0:01:32.5]} 33. Nxd8 {[%clk 0:01:47.7]} 33... Qxd8 {[%clk
0:01:32.3]} 34. Qf3 {[%clk 0:01:44.5]} 34... h5 {[%clk 0:01:25.4]} 35. Red1
{[%clk 0:01:28.4]} 35... Kh7 {[%clk 0:01:25.3]} 36. h3 {[%clk 0:01:29.1]} 36...
Ra7 {[%clk 0:01:24.6]} 37. Rd5 {[%clk 0:01:19.7]} 37... Qb6 {[%clk 0:01:23.3]}
38. Qc3 {[%clk 0:00:59.6]} 38... Qc6 {[%clk 0:01:22.2]} 39. Rad1 {[%clk
0:00:58.6]} 39... c4 {[%clk 0:01:22]} 40. Qf3 {[%clk 0:00:47.3]} 40... Qb6
{[%clk 0:01:19.9]} 41. Qc3 {[%clk 0:00:42.4]} 41... Qc6 {[%clk 0:01:19.9]} 42.
f3 {[%clk 0:00:33.6]} 42... Rb7 {[%clk 0:01:16.6]} 43. b4 {[%clk 0:00:23.4]}
43... Rb8 {[%clk 0:01:02.4]} 44. Kg2 {[%clk 0:00:23.1]} 44... Qa4 {[%clk
0:00:42.6]} 45. Nc5 {[%clk 0:00:19.3]} 45... Nxc5 {[%clk 0:00:41.6]} 46. bxc5
{[%clk 0:00:20.2]} 46... Rb3 {[%clk 0:00:42]} 47. Qc2 {[%clk 0:00:18.8]} 47...
Qb5 {[%clk 0:00:34.9]} 48. c6 {[%clk 0:00:17]} 48... Qb6 {[%clk 0:00:25.6]} 49.
R5d2 {[%clk 0:00:05]} 49... Qxc6 {[%clk 0:00:24.8]} 50. Rf2 {[%clk 0:00:04.7]}
50... Rb7 {[%clk 0:00:22.3]} 51. Qe2 {[%clk 0:00:02.5]} 51... Rd7 {[%clk
0:00:22.1]} 52. Qc2 {[%clk 0:00:03.2]} 52... Rxd6 {[%clk 0:00:22.9]} 53. Rxd6
{[%clk 0:00:04.3]} 53... Qxd6 {[%clk 0:00:24.2]} 54. Qxc4 {[%clk 0:00:06.2]}
54... Qxf6 {[%clk 0:00:25.7]} 55. h4 {[%clk 0:00:07.6]} 55... Kg7 {[%clk
0:00:24.1]} 56. Kh3 {[%clk 0:00:07.6]} 56... Qf5+ {[%clk 0:00:25.3]} 57. Kg2
{[%clk 0:00:08.6]} 57... a5 {[%clk 0:00:25.1]} 58. Rb2 {[%clk 0:00:09.1]} 58...
Qf6 {[%clk 0:00:23.4]} 59. Rb7 {[%clk 0:00:09.6]} 59... a4 {[%clk 0:00:23.3]}
60. Ra7 {[%clk 0:00:08.9]} 60... a3 {[%clk 0:00:23.5]} 61. Kh3 {[%clk
0:00:08.3]} 61... Qf5+ {[%clk 0:00:20.1]} 62. Kg2 {[%clk 0:00:09.2]} 62... Qf6
{[%clk 0:00:20.2]} 63. Kh3 {[%clk 0:00:10]} 63... a2 {[%clk 0:00:20.2]} 64. Qxa2
{[%clk 0:00:07.1]} 64... Be3 {[%clk 0:00:21.2]} 65. Kg2 {[%clk 0:00:03.4]} 65...
Bxa7 {[%clk 0:00:21]} 66. Qxa7 {[%clk 0:00:03.5]} 66... Qxh4 {[%clk 0:00:22.3]}
67. Qd7 {[%clk 0:00:03.2]} 67... Qf6 {[%clk 0:00:23.7]} 68. Kf2 {[%clk
0:00:04.1]} 68... e4 {[%clk 0:00:24.4]} 69. f4 {[%clk 0:00:03.4]} 69... Qxf4+
{[%clk 0:00:24.8]} 70. Ke1 {[%clk 0:00:05.3]} 70... e3 {[%clk 0:00:24.7]} 71.
Kd1 {[%clk 0:00:05.8]} 71... Qf1+ {[%clk 0:00:24.3]} 72. Kc2 {[%clk 0:00:06.5]}
72... Qf2+ {[%clk 0:00:25.6]} 73. Kb3 {[%clk 0:00:06.8]} 73... e2 {[%clk
0:00:27.1]} 74. Qh3 {[%clk 0:00:03.8]} 74... e1=Q {[%clk 0:00:26.1]} 75. Ka4
{[%clk 0:00:02.1]} 75... Qe4+ {[%clk 0:00:26.1]} 76. Ka5 {[%clk 0:00:02.2]}
76... Qff5+ {[%clk 0:00:26.6]} 77. Kb6 {[%clk 0:00:02.7]} 77... Qee6+ {[%clk
0:00:26.5]} 78. Kc7 {[%clk 0:00:03]} 78... Qc5+ {[%clk 0:00:26.4]} 79. Kb7
{[%clk 0:00:02.7]} 79... Qeb6+ {[%clk 0:00:27.1]} 80. Ka8 {[%clk 0:00:03]} 80...
Qca5# {[%clk 0:00:28.4]} 0-1

[Event "*** MasterClass Titled Tuesday Blitz"]
[Site "Chess.com"]
[Date "2017.07.04"]
[Round "4"]
[White "stuffings101"]
[Black "Rating-Schmating"]
[Result "0-1"]
[WhiteElo "2177"]
[BlackElo "2242"]
[TimeControl "180+2"]
[EndTime "13:46:23 PDT"]
[Termination "Rating-Schmating won by resignation"]

1. e4 {[%clk 0:03:01.9]} 1... e6 {[%clk 0:03:00.3]} 2. d3 {[%clk 0:02:59.7]}
2... d5 {[%clk 0:02:57.9]} 3. Nd2 {[%clk 0:02:59]} 3... Nf6 {[%clk 0:02:58.9]}
4. Ngf3 {[%clk 0:02:59]} 4... Bc5 {[%clk 0:03:00]} 5. c3 {[%clk 0:02:57.3]} 5...
dxe4 {[%clk 0:02:58.5]} 6. Nxe4 {[%clk 0:02:57]} 6... Nxe4 {[%clk 0:02:57.8]} 7.
Qa4+ {[%clk 0:02:57]} 7... Nc6 {[%clk 0:02:57.1]} 8. dxe4 {[%clk 0:02:51.4]}
8... Bd7 {[%clk 0:02:55.9]} 9. Qc2 {[%clk 0:02:49.8]} 9... Qe7 {[%clk
0:02:52.2]} 10. b4 {[%clk 0:02:45.1]} 10... Bb6 {[%clk 0:02:51.9]} 11. b5 {[%clk
0:02:45.1]} 11... Nd8 {[%clk 0:02:49.7]} 12. a4 {[%clk 0:02:39.8]} 12... c6
{[%clk 0:02:49.8]} 13. Ne5 {[%clk 0:02:36.5]} 13... Bc7 {[%clk 0:02:32.8]} 14.
Nxd7 {[%clk 0:02:33.2]} 14... Qxd7 {[%clk 0:02:34.7]} 15. Bc4 {[%clk 0:02:31.6]}
15... O-O {[%clk 0:02:21.3]} 16. Ba3 {[%clk 0:02:30.8]} 16... Re8 {[%clk
0:02:19.5]} 17. Rd1 {[%clk 0:02:30.8]} 17... Qc8 {[%clk 0:02:20.4]} 18. O-O
{[%clk 0:02:27.4]} 18... cxb5 {[%clk 0:02:20.5]} 19. axb5 {[%clk 0:02:26.7]}
19... Bxh2+ {[%clk 0:02:17.1]} 20. Kxh2 {[%clk 0:02:26.3]} 20... Qxc4 {[%clk
0:02:18.1]} 21. Rd7 {[%clk 0:02:12]} 21... Qxf1 {[%clk 0:02:12.6]} 22. e5 {[%clk
0:02:07.2]} 22... Qxb5 {[%clk 0:02:10.6]} 23. Rc7 {[%clk 0:02:06.3]} 23... Qxe5+
{[%clk 0:02:11.4]} 0-1

[Event "*** MasterClass Titled Tuesday Blitz"]
[Site "Chess.com"]
[Date "2017.07.04"]
[Round "4"]
[White "maheswaran26"]
[Black "Alliswell998"]
[Result "0-1"]
[WhiteElo "2150"]
[BlackElo "2309"]
[TimeControl "180+2"]
[EndTime "13:47:03 PDT"]
[Termination "Alliswell998 won by resignation"]

1. d4 {[%clk 0:02:48.6]} 1... Nf6 {[%clk 0:03:00.3]} 2. c4 {[%clk 0:02:48]} 2...
c5 {[%clk 0:03:00.9]} 3. Nf3 {[%clk 0:02:48.1]} 3... cxd4 {[%clk 0:03:01.6]} 4.
Nxd4 {[%clk 0:02:47.9]} 4... b6 {[%clk 0:03:01.9]} 5. Nc3 {[%clk 0:02:47.5]}
5... Bb7 {[%clk 0:03:02.9]} 6. f3 {[%clk 0:02:48.6]} 6... e6 {[%clk 0:03:02.9]}
7. e4 {[%clk 0:02:48.6]} 7... d6 {[%clk 0:03:03.9]} 8. Be3 {[%clk 0:02:47.7]}
8... Be7 {[%clk 0:03:04.9]} 9. Be2 {[%clk 0:02:47.7]} 9... a6 {[%clk 0:03:05.9]}
10. O-O {[%clk 0:02:48.1]} 10... Nbd7 {[%clk 0:03:07.3]} 11. Qd2 {[%clk
0:02:48.2]} 11... Rc8 {[%clk 0:03:08.6]} 12. Rac1 {[%clk 0:02:46]} 12... Qc7
{[%clk 0:03:08.8]} 13. Rfd1 {[%clk 0:02:46.3]} 13... Qb8 {[%clk 0:03:09.8]} 14.
Bf1 {[%clk 0:02:46]} 14... O-O {[%clk 0:03:09.5]} 15. b4 {[%clk 0:02:45.1]}
15... Rfe8 {[%clk 0:03:09.3]} 16. Nb3 {[%clk 0:02:42]} 16... d5 {[%clk
0:02:59.4]} 17. cxd5 {[%clk 0:02:27.1]} 17... exd5 {[%clk 0:02:52.4]} 18. Nxd5
{[%clk 0:02:26.1]} 18... Bxd5 {[%clk 0:02:48.7]} 19. exd5 {[%clk 0:02:24.1]}
19... Bd6 {[%clk 0:02:47.1]} 20. Rxc8 {[%clk 0:02:17]} 20... Bxh2+ {[%clk
0:02:42.1]} 21. Kh1 {[%clk 0:02:16.9]} 21... Rxc8 {[%clk 0:02:44]} 22. d6 {[%clk
0:02:14.3]} 22... Be5 {[%clk 0:02:35.4]} 23. Bxa6 {[%clk 0:02:12.4]} 23... Rd8
{[%clk 0:02:28.4]} 24. f4 {[%clk 0:02:12.3]} 24... Ne4 {[%clk 0:02:19.8]} 25.
Qd5 {[%clk 0:02:09.6]} 25... Nc3 {[%clk 0:02:19.2]} 26. Qd3 {[%clk 0:01:59.2]}
26... Nxd1 {[%clk 0:02:18.2]} 27. fxe5 {[%clk 0:01:57.2]} 27... Nxe3 {[%clk
0:02:16.3]} 28. Qxe3 {[%clk 0:01:57.1]} 28... Re8 {[%clk 0:02:14.2]} 0-1

[Event "*** MasterClass Titled Tuesday Blitz"]
[Site "Chess.com"]
[Date "2017.07.04"]
[Round "4"]
[White "platy3"]
[Black "x-3738459472"]
[Result "0-1"]
[WhiteElo "2610"]
[BlackElo "2461"]
[TimeControl "180+2"]
[EndTime "13:48:30 PDT"]
[Termination "x-3738459472 won by checkmate"]

1. e4 {[%clk 0:02:59.6]} 1... c5 {[%clk 0:02:59.4]} 2. Nf3 {[%clk 0:02:58.4]}
2... Nc6 {[%clk 0:02:59.3]} 3. d4 {[%clk 0:02:39.8]} 3... cxd4 {[%clk
0:02:59.5]} 4. Nxd4 {[%clk 0:02:41.7]} 4... e5 {[%clk 0:02:59.6]} 5. Nb5 {[%clk
0:02:17.5]} 5... d6 {[%clk 0:02:59]} 6. N1c3 {[%clk 0:02:18.1]} 6... a6 {[%clk
0:02:51.5]} 7. Na3 {[%clk 0:02:07.5]} 7... b5 {[%clk 0:02:52.3]} 8. Nd5 {[%clk
0:02:00.2]} 8... Nge7 {[%clk 0:02:49.6]} 9. c4 {[%clk 0:02:00.6]} 9... Nd4
{[%clk 0:02:42.6]} 10. Be3 {[%clk 0:01:59]} 10... Nxd5 {[%clk 0:02:42.3]} 11.
cxd5 {[%clk 0:01:55.1]} 11... g6 {[%clk 0:02:42.3]} 12. Nc2 {[%clk 0:01:55]}
12... Bg7 {[%clk 0:02:42.3]} 13. Nxd4 {[%clk 0:01:39.7]} 13... exd4 {[%clk
0:02:40.6]} 14. Bxd4 {[%clk 0:01:41.6]} 14... Qa5+ {[%clk 0:02:36.1]} 15. Ke2
{[%clk 0:01:42.2]} 15... Bxd4 {[%clk 0:02:35.6]} 16. Qxd4 {[%clk 0:01:35.6]}
16... O-O {[%clk 0:02:37.5]} 17. f4 {[%clk 0:01:15.1]} 17... Bg4+ {[%clk
0:02:35.1]} 18. Kf2 {[%clk 0:01:16]} 18... Rac8 {[%clk 0:02:36.2]} 19. Kg3
{[%clk 0:01:06.2]} 19... Bd7 {[%clk 0:02:34.2]} 20. Bd3 {[%clk 0:00:56.2]} 20...
f5 {[%clk 0:02:34.2]} 21. e5 {[%clk 0:00:55.4]} 21... dxe5 {[%clk 0:02:32.6]}
22. fxe5 {[%clk 0:00:53.3]} 22... Qd2 {[%clk 0:02:32.1]} 23. Rad1 {[%clk
0:00:27.7]} 23... f4+ {[%clk 0:02:28.9]} 24. Kf3 {[%clk 0:00:29]} 24... Bg4+
{[%clk 0:02:27.2]} 25. Kxg4 {[%clk 0:00:30.3]} 25... Qxg2+ {[%clk 0:02:26.5]}
26. Kh4 {[%clk 0:00:31.8]} 26... Rc4 {[%clk 0:02:09.6]} 27. Qg1 {[%clk
0:00:18.1]} 27... f3+ {[%clk 0:02:00.6]} 28. Bxc4 {[%clk 0:00:18.5]} 28... Rf4#
{[%clk 0:01:59.3]} 0-1

[Event "*** MasterClass Titled Tuesday Blitz"]
[Site "Chess.com"]
[Date "2017.07.04"]
[Round "4"]
[White "Penguininja"]
[Black "Vamostodorecto"]
[Result "0-1"]
[WhiteElo "2315"]
[BlackElo "2338"]
[TimeControl "180+2"]
[EndTime "13:48:56 PDT"]
[Termination "Vamostodorecto won by resignation"]

1. d4 {[%clk 0:03:01.9]} 1... d5 {[%clk 0:03:00.1]} 2. c4 {[%clk 0:03:02.6]}
2... Nc6 {[%clk 0:03:01.1]} 3. cxd5 {[%clk 0:02:59.8]} 3... Qxd5 {[%clk
0:03:01.1]} 4. e3 {[%clk 0:03:01.7]} 4... e5 {[%clk 0:03:01.6]} 5. Nc3 {[%clk
0:03:02.3]} 5... Bb4 {[%clk 0:03:02.3]} 6. Bd2 {[%clk 0:02:47.8]} 6... Bxc3
{[%clk 0:03:00.7]} 7. bxc3 {[%clk 0:02:44.9]} 7... exd4 {[%clk 0:02:59.3]} 8.
cxd4 {[%clk 0:02:43.6]} 8... Nf6 {[%clk 0:02:58.8]} 9. Ne2 {[%clk 0:02:31.9]}
9... Bg4 {[%clk 0:02:56.9]} 10. f3 {[%clk 0:02:27]} 10... Bxf3 {[%clk
0:02:50.7]} 11. gxf3 {[%clk 0:02:21.7]} 11... Qxf3 {[%clk 0:02:52.6]} 12. Ng3
{[%clk 0:02:18.1]} 12... Qd5 {[%clk 0:02:42.6]} 13. Qb3 {[%clk 0:02:11.1]} 13...
Qd6 {[%clk 0:02:18.3]} 14. Bg2 {[%clk 0:01:37.7]} 14... O-O {[%clk 0:02:12.8]}
15. O-O {[%clk 0:01:36.8]} 15... Rad8 {[%clk 0:01:59.7]} 16. Rad1 {[%clk
0:01:16.4]} 16... Ng4 {[%clk 0:01:57.6]} 17. Qxb7 {[%clk 0:00:57.4]} 17... Nxd4
{[%clk 0:01:17]} 18. Qe4 {[%clk 0:00:21.4]} 18... Ne2+ {[%clk 0:01:14]} 19. Kh1
{[%clk 0:00:18.1]} 19... Nxg3+ {[%clk 0:01:11.8]} 20. hxg3 {[%clk 0:00:20]}
20... Qh6+ {[%clk 0:01:11.8]} 0-1

[Event "*** MasterClass Titled Tuesday Blitz"]
[Site "Chess.com"]
[Date "2017.07.04"]
[Round "4"]
[White "Indianlad"]
[Black "Malev212"]
[Result "1-0"]
[WhiteElo "2521"]
[BlackElo "2517"]
[TimeControl "180+2"]
[EndTime "13:49:06 PDT"]
[Termination "Indianlad won by resignation"]

1. d4 {[%clk 0:02:59.4]} 1... d6 {[%clk 0:02:55.9]} 2. e4 {[%clk 0:02:59.5]}
2... g6 {[%clk 0:02:54.2]} 3. Nc3 {[%clk 0:02:59.8]} 3... Bg7 {[%clk 0:02:55.2]}
4. h4 {[%clk 0:03:01.7]} 4... h6 {[%clk 0:02:47.9]} 5. Bc4 {[%clk 0:03:01.9]}
5... c6 {[%clk 0:02:46.2]} 6. Bb3 {[%clk 0:03:02.4]} 6... Nf6 {[%clk 0:02:43.5]}
7. Nge2 {[%clk 0:03:02.2]} 7... Nbd7 {[%clk 0:02:38]} 8. Ng3 {[%clk 0:02:59.6]}
8... h5 {[%clk 0:02:35]} 9. Bg5 {[%clk 0:02:59]} 9... Qc7 {[%clk 0:02:26.9]} 10.
Qe2 {[%clk 0:02:49.4]} 10... b5 {[%clk 0:02:25.7]} 11. f4 {[%clk 0:02:38.6]}
11... b4 {[%clk 0:02:15.5]} 12. Na4 {[%clk 0:02:33.6]} 12... e5 {[%clk
0:02:11.4]} 13. dxe5 {[%clk 0:02:32.9]} 13... dxe5 {[%clk 0:02:10.6]} 14. f5
{[%clk 0:02:33.9]} 14... Bb7 {[%clk 0:01:57.4]} 15. Qc4 {[%clk 0:02:20.6]} 15...
Rf8 {[%clk 0:01:39.1]} 16. Qxb4 {[%clk 0:02:12.1]} 16... c5 {[%clk 0:01:39.1]}
17. Qc4 {[%clk 0:02:13.2]} 17... O-O-O {[%clk 0:01:30.4]} 18. O-O-O {[%clk
0:02:13.1]} 18... Kb8 {[%clk 0:01:24.1]} 19. Rd2 {[%clk 0:02:09.8]} 19... Nb6
{[%clk 0:01:21.9]} 20. Rxd8+ {[%clk 0:02:05.9]} 20... Rxd8 {[%clk 0:01:20.2]}
21. Nxb6 {[%clk 0:02:00]} 21... axb6 {[%clk 0:01:19.3]} 22. Qxf7 {[%clk
0:02:00.5]} 22... Rd7 {[%clk 0:01:15.7]} 23. Qxg6 {[%clk 0:01:54]} 23... Nxe4
{[%clk 0:01:14.6]} 24. Nxe4 {[%clk 0:01:34.7]} 24... Bxe4 {[%clk 0:01:12.6]} 25.
Be6 {[%clk 0:01:36.6]} 25... Rd6 {[%clk 0:01:05.3]} 26. Qe8+ {[%clk 0:01:34.7]}
26... Kb7 {[%clk 0:01:04.1]} 27. f6 {[%clk 0:01:23.4]} 27... Rd8 {[%clk
0:00:57.4]} 28. Qxd8 {[%clk 0:01:12.8]} 28... Qxd8 {[%clk 0:00:55.4]} 29. fxg7
{[%clk 0:01:13.5]} 1-0